[Event "Titled Tuesday Blitz December 14 2021"]
[White "Jobava, Baadur"]
[Black "Koellner, Ruben Gideon"]
[WhiteFideId "13601520"]
[BlackFideId "12993093"]
[WhiteElo "2689"]
[BlackElo "2574"]
[Result "1-0"]
[Round "04"]
[TimeControl "180+1"]
[Date "2021.12.15"]
[WhiteClock "0:00:20"]
[BlackClock "0:00:03"]

1. b3 {[%clk 0:03:00]}  e5 {[%clk 0:02:59]} 2. Bb2 {[%clk 0:03:01]}  g6 {[%clk 0:02:58]} 3. Bxe5 {[%clk 0:02:59]}  Nf6 {[%clk 0:02:37]} 4. Bb2 {[%clk 0:02:59]}  Bg7 {[%clk 0:02:37]} 5. e3 {[%clk 0:02:59]}  O-O {[%clk 0:02:38]} 6. Nf3 {[%clk 0:02:59]}  d6 {[%clk 0:02:39]} 7. Be2 {[%clk 0:02:58]}  Re8 {[%clk 0:02:39]} 8. O-O {[%clk 0:02:58]}  Nc6 {[%clk 0:02:39]} 9. c4 {[%clk 0:02:58]}  Bf5 {[%clk 0:02:38]} 10. Nc3 {[%clk 0:02:58]}  Ne4 {[%clk 0:02:36]} 11. d4 {[%clk 0:02:54]}  Nxc3 {[%clk 0:02:35]} 12. Bxc3 {[%clk 0:02:54]}  h5 {[%clk 0:02:32]} 13. Rc1 {[%clk 0:02:54]}  a5 {[%clk 0:02:31]} 14. Re1 {[%clk 0:02:47]}  b6 {[%clk 0:02:29]} 15. h3 {[%clk 0:02:44]}  Nb8 {[%clk 0:02:26]} 16. Bd3 {[%clk 0:02:42]}  Bxd3 {[%clk 0:02:25]} 17. Qxd3 {[%clk 0:02:43]}  Nd7 {[%clk 0:02:26]} 18. e4 {[%clk 0:02:42]}  c6 {[%clk 0:02:22]} 19. Rcd1 {[%clk 0:02:39]}  Qc7 {[%clk 0:02:21]} 20. Re2 {[%clk 0:02:30]}  Re7 {[%clk 0:02:10]} 21. Rde1 {[%clk 0:02:29]}  Rae8 {[%clk 0:02:10]} 22. a3 {[%clk 0:02:25]}  Qb8 {[%clk 0:02:05]} 23. b4 {[%clk 0:02:25]}  a4 {[%clk 0:02:03]} 24. b5 {[%clk 0:02:23]}  c5 {[%clk 0:01:57]} 25. Qc2 {[%clk 0:02:21]}  Qc7 {[%clk 0:01:54]} 26. Qxa4 {[%clk 0:02:19]}  Qb7 {[%clk 0:01:28]} 27. Qc2 {[%clk 0:02:16]}  Qa8 {[%clk 0:01:22]} 28. a4 {[%clk 0:02:15]}  Qb7 {[%clk 0:01:17]} 29. d5 {[%clk 0:02:02]}  Bxc3 {[%clk 0:01:03]} 30. Qxc3 {[%clk 0:02:03]}  f6 {[%clk 0:01:03]} 31. a5 {[%clk 0:01:59]}  bxa5 {[%clk 0:01:01]} 32. Qxa5 {[%clk 0:02:00]}  Nb6 {[%clk 0:01:00]} 33. Qc3 {[%clk 0:02:00]}  Kg7 {[%clk 0:00:58]} 34. Ng5 {[%clk 0:01:58]}  Re5 {[%clk 0:00:41]} 35. f4 {[%clk 0:01:57]}  fxg5 {[%clk 0:00:38]} 36. fxe5 {[%clk 0:01:58]}  Rxe5 {[%clk 0:00:39]} 37. Rf1 {[%clk 0:01:57]}  Qe7 {[%clk 0:00:36]} 38. Ref2 {[%clk 0:01:57]}  Nd7 {[%clk 0:00:30]} 39. Qb2 {[%clk 0:01:49]}  Nb6 {[%clk 0:00:28]} 40. Qc3 {[%clk 0:01:41]}  Nd7 {[%clk 0:00:27]} 41. Rf7+ {[%clk 0:01:24]}  Qxf7 {[%clk 0:00:27]} 42. Rxf7+ {[%clk 0:01:25]}  Kxf7 {[%clk 0:00:28]} 43. Qa3 {[%clk 0:01:25]}  Rxe4 {[%clk 0:00:22]} 44. Qf3+ {[%clk 0:01:15]}  Rf4 {[%clk 0:00:20]} 45. Qe2 {[%clk 0:01:11]}  Ne5 {[%clk 0:00:16]} 46. b6 {[%clk 0:01:11]}  Ke7 {[%clk 0:00:11]} 47. b7 {[%clk 0:01:10]}  Rf8 {[%clk 0:00:12]} 48. Qe3 {[%clk 0:01:04]}  Rb8 {[%clk 0:00:09]} 49. Qxg5+ {[%clk 0:01:04]}  Kd7 {[%clk 0:00:09]} 50. Qf6 {[%clk 0:00:55]}  Rxb7 {[%clk 0:00:09]} 51. Qe6+ {[%clk 0:00:56]}  Kc7 {[%clk 0:00:09]} 52. Qe7+ {[%clk 0:00:56]}  Nd7 {[%clk 0:00:10]} 53. Qg7 {[%clk 0:00:56]}  Rb1+ {[%clk 0:00:11]} 54. Kh2 {[%clk 0:00:56]}  Rc1 {[%clk 0:00:11]} 55. Qxg6 {[%clk 0:00:56]}  Rxc4 {[%clk 0:00:11]} 56. Qxh5 {[%clk 0:00:56]}  Rd4 {[%clk 0:00:11]} 57. h4 {[%clk 0:00:33]}  Ne5 {[%clk 0:00:10]} 58. Qh7+ {[%clk 0:00:32]}  Kb6 {[%clk 0:00:09]} 59. h5 {[%clk 0:00:31]}  Rxd5 {[%clk 0:00:08]} 60. h6 {[%clk 0:00:30]}  Ng4+ {[%clk 0:00:08]} 61. Kg3 {[%clk 0:00:29]}  Nxh6 {[%clk 0:00:03]} 62. Qxh6 {[%clk 0:00:29]}  c4 {[%clk 0:00:04]} 63. Kf3 {[%clk 0:00:26]}  Kc5 {[%clk 0:00:05]} 64. Qg7 {[%clk 0:00:21]}  Rd3+ {[%clk 0:00:04]} 65. Ke2 {[%clk 0:00:21]}  d5 {[%clk 0:00:05]} 66. g4 {[%clk 0:00:20]}  Rg3 {[%clk 0:00:02]} 67. Qc7+ {[%clk 0:00:19]}  Kd4 {[%clk 0:00:03]} 68. Qxg3 {[%clk 0:00:20]} 1-0


[Site "https://www.chess.com"]

[Event "Titled Tuesday Blitz December 14 2021"]
[White "Keymer, Vincent"]
[Black "Mischuk, Dmitry"]
[WhiteFideId "12940690"]
[BlackFideId "14118734"]
[WhiteElo "2557"]
[BlackElo "2344"]
[Result "1/2-1/2"]
[Round "04"]
[TimeControl "180+1"]
[Date "2021.12.14"]
[WhiteClock "0:00:08"]
[BlackClock "0:00:27"]

1. Nf3 {[%clk 0:03:00]}  d5 {[%clk 0:02:57]} 2. c4 {[%clk 0:03:01]}  e6 {[%clk 0:02:56]} 3. e3 {[%clk 0:03:01]}  c5 {[%clk 0:02:55]} 4. cxd5 {[%clk 0:03:00]}  exd5 {[%clk 0:02:54]} 5. d4 {[%clk 0:03:00]}  Nc6 {[%clk 0:02:52]} 6. Bb5 {[%clk 0:03:00]}  cxd4 {[%clk 0:02:50]} 7. Nxd4 {[%clk 0:02:58]}  Bd7 {[%clk 0:02:50]} 8. O-O {[%clk 0:02:56]}  Nf6 {[%clk 0:02:50]} 9. Nc3 {[%clk 0:02:51]}  Bd6 {[%clk 0:02:50]} 10. Nf3 {[%clk 0:02:51]}  a6 {[%clk 0:02:33]} 11. Bxc6 {[%clk 0:02:37]}  Bxc6 {[%clk 0:02:30]} 12. b3 {[%clk 0:02:31]}  O-O {[%clk 0:02:30]} 13. Bb2 {[%clk 0:02:31]}  Re8 {[%clk 0:02:30]} 14. h3 {[%clk 0:02:28]}  Rc8 {[%clk 0:02:29]} 15. Rc1 {[%clk 0:02:25]}  Ne4 {[%clk 0:02:20]} 16. Qd4 {[%clk 0:02:14]}  Bf8 {[%clk 0:02:18]} 17. Rfd1 {[%clk 0:02:02]}  Qa5 {[%clk 0:02:14]} 18. a4 {[%clk 0:01:48]}  Rcd8 {[%clk 0:01:57]} 19. Ne2 {[%clk 0:01:35]}  Rd6 {[%clk 0:01:28]} 20. Ba3 {[%clk 0:01:21]}  Rf6 {[%clk 0:01:21]} 21. Bxf8 {[%clk 0:01:21]}  Kxf8 {[%clk 0:01:22]} 22. Nf4 {[%clk 0:01:18]}  Rd6 {[%clk 0:01:16]} 23. Nd2 {[%clk 0:01:09]}  Rdd8 {[%clk 0:01:12]} 24. Nh5 {[%clk 0:00:57]}  f6 {[%clk 0:01:10]} 25. Nf4 {[%clk 0:00:54]}  Kf7 {[%clk 0:01:07]} 26. Nf3 {[%clk 0:00:46]}  Rd7 {[%clk 0:01:01]} 27. Nd3 {[%clk 0:00:43]}  Rde7 {[%clk 0:00:58]} 28. Qb4 {[%clk 0:00:38]}  Qd8 {[%clk 0:00:54]} 29. Nc5 {[%clk 0:00:36]}  a5 {[%clk 0:00:50]} 30. Qd4 {[%clk 0:00:36]}  Qb8 {[%clk 0:00:40]} 31. Nd3 {[%clk 0:00:26]}  Kg8 {[%clk 0:00:37]} 32. Nf4 {[%clk 0:00:26]}  Rd7 {[%clk 0:00:37]} 33. Ne1 {[%clk 0:00:20]}  Rdd8 {[%clk 0:00:37]} 34. Ned3 {[%clk 0:00:20]}  Qd6 {[%clk 0:00:36]} 35. Nc5 {[%clk 0:00:19]}  Qe5 {[%clk 0:00:34]} 36. Qxe5 {[%clk 0:00:18]}  fxe5 {[%clk 0:00:34]} 37. Nfe6 {[%clk 0:00:18]}  Rd6 {[%clk 0:00:34]} 38. Nxe4 {[%clk 0:00:16]}  Rdxe6 {[%clk 0:00:34]} 39. Nc5 {[%clk 0:00:12]}  Rd6 {[%clk 0:00:33]} 40. Rd2 {[%clk 0:00:13]}  Red8 {[%clk 0:00:32]} 41. Rcd1 {[%clk 0:00:12]}  Kf7 {[%clk 0:00:32]} 42. Nd3 {[%clk 0:00:12]}  Ke6 {[%clk 0:00:31]} 43. f4 {[%clk 0:00:13]}  exf4 {[%clk 0:00:25]} 44. Nxf4+ {[%clk 0:00:14]}  Ke5 {[%clk 0:00:24]} 45. Rd4 {[%clk 0:00:14]}  g5 {[%clk 0:00:20]} 46. Nd3+ {[%clk 0:00:14]}  Kf5 {[%clk 0:00:20]} 47. Rf1+ {[%clk 0:00:14]}  Kg6 {[%clk 0:00:21]} 48. Rf3 {[%clk 0:00:13]}  Rf6 {[%clk 0:00:21]} 49. Rg3 {[%clk 0:00:11]}  h6 {[%clk 0:00:21]} 50. h4 {[%clk 0:00:11]}  Re8 {[%clk 0:00:21]} 51. hxg5 {[%clk 0:00:11]}  hxg5 {[%clk 0:00:22]} 52. Rdg4 {[%clk 0:00:10]}  Rf5 {[%clk 0:00:23]} 53. Rd4 {[%clk 0:00:09]}  Re4 {[%clk 0:00:22]} 54. Rf3 {[%clk 0:00:03]}  Rxf3 {[%clk 0:00:21]} 55. gxf3 {[%clk 0:00:04]}  Rxe3 {[%clk 0:00:21]} 56. Kf2 {[%clk 0:00:05]}  Re8 {[%clk 0:00:21]} 57. Kg3 {[%clk 0:00:05]}  Kf5 {[%clk 0:00:21]} 58. Kf2 {[%clk 0:00:05]}  Rh8 {[%clk 0:00:21]} 59. Kg3 {[%clk 0:00:06]}  Rh1 {[%clk 0:00:21]} 60. b4 {[%clk 0:00:05]}  axb4 {[%clk 0:00:19]} 61. Rxb4 {[%clk 0:00:06]}  Ra1 {[%clk 0:00:19]} 62. Nc5 {[%clk 0:00:05]}  Ra3 {[%clk 0:00:19]} 63. Kf2 {[%clk 0:00:05]}  Ke5 {[%clk 0:00:19]} 64. Nxb7 {[%clk 0:00:04]}  Bxb7 {[%clk 0:00:19]} 65. Rxb7 {[%clk 0:00:05]}  Rxa4 {[%clk 0:00:20]} 66. Re7+ {[%clk 0:00:05]}  Kf6 {[%clk 0:00:20]} 67. Rd7 {[%clk 0:00:05]}  Ra5 {[%clk 0:00:21]} 68. Rd8 {[%clk 0:00:06]}  Ke6 {[%clk 0:00:21]} 69. Rg8 {[%clk 0:00:06]}  Kf6 {[%clk 0:00:21]} 70. Rf8+ {[%clk 0:00:06]}  Kg7 {[%clk 0:00:21]} 71. Rd8 {[%clk 0:00:07]}  Kg6 {[%clk 0:00:22]} 72. Kg3 {[%clk 0:00:07]}  Kf6 {[%clk 0:00:22]} 73. Rf8+ {[%clk 0:00:06]}  Kg7 {[%clk 0:00:22]} 74. Rd8 {[%clk 0:00:06]}  Kf7 {[%clk 0:00:21]} 75. Kg4 {[%clk 0:00:06]}  Kf6 {[%clk 0:00:22]} 76. Rf8+ {[%clk 0:00:06]}  Ke7 {[%clk 0:00:22]} 77. Rf5 {[%clk 0:00:06]}  Ra4+ {[%clk 0:00:21]} 78. Kxg5 {[%clk 0:00:07]}  Ke6 {[%clk 0:00:22]} 79. f4 {[%clk 0:00:06]}  d4 {[%clk 0:00:22]} 80. Re5+ {[%clk 0:00:06]}  Kd6 {[%clk 0:00:22]} 81. Re1 {[%clk 0:00:06]}  Kd5 {[%clk 0:00:22]} 82. f5 {[%clk 0:00:06]}  Ra2 {[%clk 0:00:23]} 83. f6 {[%clk 0:00:06]}  Rg2+ {[%clk 0:00:23]} 84. Kh6 {[%clk 0:00:07]}  Rf2 {[%clk 0:00:24]} 85. Kg7 {[%clk 0:00:07]}  d3 {[%clk 0:00:25]} 86. f7 {[%clk 0:00:07]}  Kd4 {[%clk 0:00:25]} 87. Re6 {[%clk 0:00:08]}  d2 {[%clk 0:00:25]} 88. Rd6+ {[%clk 0:00:08]}  Ke3 {[%clk 0:00:25]} 89. Re6+ {[%clk 0:00:08]}  Kd3 {[%clk 0:00:25]} 90. Rd6+ {[%clk 0:00:09]}  Ke2 {[%clk 0:00:25]} 91. Re6+ {[%clk 0:00:09]}  Kd1 {[%clk 0:00:26]} 92. Rc6 {[%clk 0:00:07]}  Ke1 {[%clk 0:00:26]} 93. Re6+ {[%clk 0:00:07]}  Kf1 {[%clk 0:00:26]} 94. Rd6 {[%clk 0:00:07]}  Ke1 {[%clk 0:00:26]} 95. Re6+ {[%clk 0:00:07]}  Kf1 {[%clk 0:00:26]} 96. Rd6 {[%clk 0:00:08]}  Ke1 {[%clk 0:00:27]} 97. Re6+ {[%clk 0:00:08]} 1/2-1/2


[Site "https://www.chess.com"]

[Event "Titled Tuesday Blitz December 14 2021"]
[White "Kim, Sergey"]
[Black "Demidov, Mikhail"]
[WhiteFideId "13700570"]
[BlackFideId "4197143"]
[WhiteElo "2557"]
[BlackElo "2592"]
[Result "0-1"]
[Round "04"]
[TimeControl "180+1"]
[Date "2021.12.15"]
[WhiteClock "0:00:05"]
[BlackClock "0:00:07"]

1. d4 {[%clk 0:03:00]}  d5 {[%clk 0:02:58]} 2. c4 {[%clk 0:03:01]}  c6 {[%clk 0:02:57]} 3. Nf3 {[%clk 0:03:00]}  Nf6 {[%clk 0:02:57]} 4. e3 {[%clk 0:03:00]}  Bf5 {[%clk 0:02:56]} 5. Nc3 {[%clk 0:03:00]}  e6 {[%clk 0:02:56]} 6. Be2 {[%clk 0:02:59]}  h6 {[%clk 0:02:56]} 7. O-O {[%clk 0:02:59]}  Nbd7 {[%clk 0:02:53]} 8. b3 {[%clk 0:02:59]}  Qa5 {[%clk 0:02:50]} 9. Bb2 {[%clk 0:02:53]}  Be7 {[%clk 0:02:49]} 10. a3 {[%clk 0:02:51]}  O-O {[%clk 0:02:48]} 11. b4 {[%clk 0:02:43]}  Qd8 {[%clk 0:02:42]} 12. Rc1 {[%clk 0:02:41]}  Ne4 {[%clk 0:02:41]} 13. h3 {[%clk 0:02:36]}  Nxc3 {[%clk 0:02:39]} 14. Bxc3 {[%clk 0:02:35]}  Nf6 {[%clk 0:02:38]} 15. Ne5 {[%clk 0:02:30]}  Ne4 {[%clk 0:02:38]} 16. Be1 {[%clk 0:02:28]}  Bf6 {[%clk 0:02:28]} 17. f3 {[%clk 0:02:08]}  Nd6 {[%clk 0:02:24]} 18. cxd5 {[%clk 0:02:07]}  cxd5 {[%clk 0:02:21]} 19. Bg3 {[%clk 0:02:01]}  Bh4 {[%clk 0:02:10]} 20. Qe1 {[%clk 0:01:51]}  Bxg3 {[%clk 0:02:07]} 21. Qxg3 {[%clk 0:01:51]}  Qe7 {[%clk 0:01:47]} 22. Rc5 {[%clk 0:01:46]}  f6 {[%clk 0:01:41]} 23. Ng6 {[%clk 0:01:39]}  Bxg6 {[%clk 0:01:40]} 24. Qxg6 {[%clk 0:01:39]}  b6 {[%clk 0:01:28]} 25. Rc6 {[%clk 0:01:36]}  Rfc8 {[%clk 0:01:27]} 26. Rfc1 {[%clk 0:01:29]}  Rxc6 {[%clk 0:01:25]} 27. Rxc6 {[%clk 0:01:29]}  Rc8 {[%clk 0:01:26]} 28. Rxc8+ {[%clk 0:01:23]}  Nxc8 {[%clk 0:01:25]} 29. Bd3 {[%clk 0:01:24]}  f5 {[%clk 0:01:14]} 30. g4 {[%clk 0:01:23]}  Nd6 {[%clk 0:00:47]} 31. Kg2 {[%clk 0:01:18]}  Qf7 {[%clk 0:00:40]} 32. gxf5 {[%clk 0:01:03]}  Nxf5 {[%clk 0:00:34]} 33. Bxf5 {[%clk 0:00:47]}  Qxf5 {[%clk 0:00:31]} 34. Qe8+ {[%clk 0:00:29]}  Kh7 {[%clk 0:00:29]} 35. h4 {[%clk 0:00:25]}  Qg6+ {[%clk 0:00:27]} 36. Qxg6+ {[%clk 0:00:25]}  Kxg6 {[%clk 0:00:28]} 37. Kg3 {[%clk 0:00:25]}  Kf5 {[%clk 0:00:26]} 38. Kh3 {[%clk 0:00:22]}  e5 {[%clk 0:00:21]} 39. dxe5 {[%clk 0:00:21]}  Kxe5 {[%clk 0:00:21]} 40. Kg4 {[%clk 0:00:21]}  g6 {[%clk 0:00:21]} 41. Kg3 {[%clk 0:00:21]}  a6 {[%clk 0:00:19]} 42. a4 {[%clk 0:00:20]}  b5 {[%clk 0:00:18]} 43. a5 {[%clk 0:00:20]}  d4 {[%clk 0:00:18]} 44. exd4+ {[%clk 0:00:20]}  Kxd4 {[%clk 0:00:19]} 45. Kf4 {[%clk 0:00:20]}  Kc4 {[%clk 0:00:19]} 46. Ke5 {[%clk 0:00:19]}  Kxb4 {[%clk 0:00:20]} 47. h5 {[%clk 0:00:20]}  gxh5 {[%clk 0:00:19]} 48. f4 {[%clk 0:00:21]}  Kc3 {[%clk 0:00:10]} 49. f5 {[%clk 0:00:21]}  b4 {[%clk 0:00:11]} 50. f6 {[%clk 0:00:22]}  b3 {[%clk 0:00:12]} 51. f7 {[%clk 0:00:22]}  b2 {[%clk 0:00:13]} 52. f8=Q {[%clk 0:00:22]}  b1=Q {[%clk 0:00:14]} 53. Qc5+ {[%clk 0:00:17]}  Kd2 {[%clk 0:00:14]} 54. Qf2+ {[%clk 0:00:15]}  Kc1 {[%clk 0:00:14]} 55. Qe3+ {[%clk 0:00:14]}  Kb2 {[%clk 0:00:14]} 56. Qd4+ {[%clk 0:00:14]}  Ka2 {[%clk 0:00:14]} 57. Qc4+ {[%clk 0:00:12]}  Qb3 {[%clk 0:00:14]} 58. Qxa6 {[%clk 0:00:12]}  Qe3+ {[%clk 0:00:13]} 59. Kd5 {[%clk 0:00:12]}  h4 {[%clk 0:00:12]} 60. Qb6 {[%clk 0:00:10]}  Qb3+ {[%clk 0:00:11]} 61. Kd6 {[%clk 0:00:08]}  h3 {[%clk 0:00:11]} 62. Qd4 {[%clk 0:00:07]}  h2 {[%clk 0:00:09]} 63. Qf2+ {[%clk 0:00:07]}  Qb2 {[%clk 0:00:09]} 64. Qf7+ {[%clk 0:00:06]}  Ka1 {[%clk 0:00:08]} 65. Qd5 {[%clk 0:00:06]}  Qa3+ {[%clk 0:00:06]} 66. Kc6 {[%clk 0:00:06]}  Qc1+ {[%clk 0:00:06]} 67. Kb7 {[%clk 0:00:05]}  h1=Q {[%clk 0:00:07]} 0-1


[Site "https://www.chess.com"]

[Event "Titled Tuesday Blitz December 14 2021"]
[White "Kislov, Oleg"]
[Black "Andreikin, Dmitry"]
[WhiteFideId "13503774"]
[BlackFideId "4158814"]
[WhiteElo "2252"]
[BlackElo "2736"]
[Result "1/2-1/2"]
[Round "04"]
[TimeControl "180+1"]
[Date "2021.12.15"]
[WhiteClock "0:00:03"]
[BlackClock "0:00:35"]

1. e4 {[%clk 0:03:00]}  c5 {[%clk 0:03:00]} 2. Nf3 {[%clk 0:02:59]}  e6 {[%clk 0:03:00]} 3. c3 {[%clk 0:02:57]}  Nf6 {[%clk 0:03:00]} 4. e5 {[%clk 0:02:55]}  Nd5 {[%clk 0:03:00]} 5. d4 {[%clk 0:02:55]}  cxd4 {[%clk 0:03:00]} 6. cxd4 {[%clk 0:02:55]}  b6 {[%clk 0:03:01]} 7. Nc3 {[%clk 0:02:54]}  Bb7 {[%clk 0:03:01]} 8. Bd3 {[%clk 0:02:53]}  Na6 {[%clk 0:03:02]} 9. O-O {[%clk 0:02:40]}  Nab4 {[%clk 0:03:01]} 10. Bb1 {[%clk 0:02:39]}  Nxc3 {[%clk 0:03:01]} 11. bxc3 {[%clk 0:02:39]}  Nd5 {[%clk 0:03:01]} 12. Bd2 {[%clk 0:02:37]}  Rc8 {[%clk 0:03:01]} 13. Qb3 {[%clk 0:02:30]}  Ba6 {[%clk 0:03:01]} 14. Rc1 {[%clk 0:02:25]}  Bc4 {[%clk 0:03:01]} 15. Qc2 {[%clk 0:02:22]}  Ba3 {[%clk 0:03:00]} 16. Re1 {[%clk 0:02:20]}  h6 {[%clk 0:02:59]} 17. Qe4 {[%clk 0:02:17]}  Bb2 {[%clk 0:02:55]} 18. Qg4 {[%clk 0:02:09]}  g5 {[%clk 0:02:46]} 19. Bc2 {[%clk 0:01:49]}  Bxa1 {[%clk 0:02:41]} 20. Rxa1 {[%clk 0:01:50]}  Qe7 {[%clk 0:02:39]} 21. Qh5 {[%clk 0:01:44]}  Be2 {[%clk 0:02:34]} 22. Re1 {[%clk 0:01:34]}  Bxf3 {[%clk 0:02:29]} 23. Qxf3 {[%clk 0:01:35]}  Qa3 {[%clk 0:02:18]} 24. Bb3 {[%clk 0:01:28]}  Qb2 {[%clk 0:02:17]} 25. Rd1 {[%clk 0:00:44]}  Nxc3 {[%clk 0:02:14]} 26. Bxc3 {[%clk 0:00:43]}  Rxc3 {[%clk 0:02:01]} 27. Qa8+ {[%clk 0:00:41]}  Ke7 {[%clk 0:01:56]} 28. Qxh8 {[%clk 0:00:40]}  Rc1 {[%clk 0:01:56]} 29. Qf6+ {[%clk 0:00:36]}  Ke8 {[%clk 0:01:54]} 30. Qf3 {[%clk 0:00:35]}  b5 {[%clk 0:01:46]} 31. Rxc1 {[%clk 0:00:34]}  Qxc1+ {[%clk 0:01:46]} 32. Qd1 {[%clk 0:00:35]}  Qc3 {[%clk 0:01:42]} 33. h3 {[%clk 0:00:30]}  a5 {[%clk 0:01:42]} 34. Qf3 {[%clk 0:00:28]}  Qxd4 {[%clk 0:01:34]} 35. Qa8+ {[%clk 0:00:21]}  Ke7 {[%clk 0:01:34]} 36. Qxa5 {[%clk 0:00:20]}  Qa1+ {[%clk 0:01:34]} 37. Kh2 {[%clk 0:00:19]}  Qxe5+ {[%clk 0:01:34]} 38. g3 {[%clk 0:00:19]}  Qd4 {[%clk 0:01:27]} 39. Qe1 {[%clk 0:00:17]}  Kf6 {[%clk 0:01:23]} 40. Qe3 {[%clk 0:00:15]}  Qxe3 {[%clk 0:01:19]} 41. fxe3 {[%clk 0:00:15]}  Ke5 {[%clk 0:01:19]} 42. Kg2 {[%clk 0:00:15]}  Ke4 {[%clk 0:01:19]} 43. Kf2 {[%clk 0:00:15]}  Kd3 {[%clk 0:01:19]} 44. Kf3 {[%clk 0:00:13]}  f5 {[%clk 0:01:17]} 45. g4 {[%clk 0:00:11]}  fxg4+ {[%clk 0:01:09]} 46. hxg4 {[%clk 0:00:12]}  d5 {[%clk 0:01:09]} 47. Kf2 {[%clk 0:00:10]}  Kd2 {[%clk 0:01:05]} 48. Kf3 {[%clk 0:00:10]}  Kd3 {[%clk 0:01:04]} 49. Bd1 {[%clk 0:00:10]}  Kc3 {[%clk 0:00:58]} 50. Be2 {[%clk 0:00:09]}  b4 {[%clk 0:00:58]} 51. Bd1 {[%clk 0:00:09]}  e5 {[%clk 0:00:52]} 52. Bb3 {[%clk 0:00:09]}  d4 {[%clk 0:00:52]} 53. exd4 {[%clk 0:00:09]}  exd4 {[%clk 0:00:53]} 54. Ke2 {[%clk 0:00:08]}  d3+ {[%clk 0:00:53]} 55. Kd1 {[%clk 0:00:08]}  d2 {[%clk 0:00:52]} 56. Bf7 {[%clk 0:00:06]}  Kd3 {[%clk 0:00:51]} 57. Bg6+ {[%clk 0:00:06]}  Ke3 {[%clk 0:00:51]} 58. Bf5 {[%clk 0:00:05]}  Kf4 {[%clk 0:00:51]} 59. Bd7 {[%clk 0:00:04]}  Ke3 {[%clk 0:00:51]} 60. Bc8 {[%clk 0:00:04]}  Kd3 {[%clk 0:00:50]} 61. Ba6+ {[%clk 0:00:04]}  Ke3 {[%clk 0:00:48]} 62. Bb5 {[%clk 0:00:03]}  Kf4 {[%clk 0:00:46]} 63. Bd7 {[%clk 0:00:03]}  Ke3 {[%clk 0:00:46]} 64. Bc8 {[%clk 0:00:02]}  Kd3 {[%clk 0:00:44]} 65. Bf5+ {[%clk 0:00:02]}  Ke3 {[%clk 0:00:40]} 66. Bg6 {[%clk 0:00:02]}  Kf4 {[%clk 0:00:37]} 67. Bh5 {[%clk 0:00:03]}  Ke3 {[%clk 0:00:36]} 68. Be8 {[%clk 0:00:03]}  Kf4 {[%clk 0:00:35]} 69. Bd7 {[%clk 0:00:03]} 1/2-1/2


[Site "https://www.chess.com"]